fUSD/lending_fUSD_20251220
["ID","MTS","AMOUNT","RATE_DAILY","PERIOD"]
[399279404,1766235043474,-235.28816838,0.00013825,2]
[399279406,1766235043483,-613.0,0.00013832,2]
[399279408,1766235043491,-166.66,0.00013836,2]
[399279410,1766235043501,-805.0,0.00013886,2]
[399279412,1766235043510,-627.07268644,0.00013969,2]
[399279414,1766235043520,-166.66,0.00013973,2]
[399279416,1766235043529,-805.0,0.00014023,2]
[399279418,1766235043538,-1000.0,0.00014067,2]
[399279420,1766235043547,-166.66,0.0001411,2]
[399279422,1766235043556,-819.34448356,0.0001416,2]
[399279424,1766235043565,-1000.0,0.00014241,2]
[399279426,1766235043574,-166.66,0.00014247,2]
[399279428,1766235043583,-28929.57302549,0.00014277,2]
[399279430,1766235043592,-21117.31244395,0.00014298,2]
[399279432,1766235043602,-166.66,0.00014384,2]
[399279434,1766235043611,-169.13428531,0.00014503,2]
[399279436,1766235043620,-250.0,0.00014545,2]
[399279438,1766235043629,-500.0,0.00014741,2]
[399279440,1766235043639,-28929.57302549,0.00014933,2]
[399279442,1766235043649,-21117.31244395,0.00014949,2]
[399279445,1766235043659,-321.02783715,0.00015,2]
[399279447,1766235043668,-500.0,0.00015123,2]
[399279449,1766235043677,-150.0,0.00015288,2]
[399279451,1766235043686,-500.0,0.00015516,2]
[399279453,1766235043697,-28929.57302549,0.00015589,2]
[399279455,1766235043706,-21117.31244395,0.00015599,2]
[399279457,1766235043716,-9552.16786547,0.00015754,2]
[399279459,1766235043727,-5000.0,0.00015754,2]
[399279461,1766235043736,-5000.0,0.00015754,2]
[399279463,1766235043745,-152.47844731,0.00015754,2]
[399279465,1766235043754,-5000.0,0.00015754,2]
[399279467,1766235043764,-5000.0,0.00015754,2]
[399279469,1766235043773,-1722.43969839,0.00015754,2]
[399279471,1766235043782,-620.0,0.00015754,2]
[399279473,1766235043791,-1785.47061055,0.00015754,2]
[399279475,1766235043801,-574.12855637,0.00015754,2]
[399279477,1766235043811,-1000.0,0.00015754,2]
[399279479,1766235043820,-1000.0,0.00015754,2]
[399279481,1766235043830,-1000.0,0.00015754,2]
[399279483,1766235043839,-500.0,0.00015754,2]
[399279485,1766235043848,-500.0,0.00015754,2]
[399279487,1766235043857,-1000.0,0.00015754,2]
[399279489,1766235043867,-500.0,0.00015754,2]
[399279491,1766235043876,-1000.0,0.00015754,2]
[399279493,1766235043886,-500.0,0.00015754,2]
[399279495,1766235043895,-151.0,0.00015754,2]
[399279497,1766235043905,-1000.0,0.00015754,2]
[399279499,1766235043914,-531.95847037,0.00015754,2]
[399279502,1766235043924,-1000.0,0.00015754,2]
[399279503,1766235043934,-500.0,0.00015754,2]
[399279505,1766235043944,-970.77463272,0.00015754,2]
[399279508,1766235043957,-153.78508436,0.00015754,2]
[399279510,1766235043966,-500.0,0.00015754,2]
[399279512,1766235043975,-500.0,0.00015754,2]
[399279514,1766235043984,-500.0,0.00015754,2]
[399279516,1766235043993,-300.0,0.00015754,2]
[399279518,1766235044002,-500.0,0.00015754,2]
[399279520,1766235044014,-500.0,0.00015754,2]
[399279521,1766235044023,-500.0,0.00015754,2]
[399279523,1766235044033,-500.0,0.00015754,2]
[399279525,1766235044043,-500.0,0.00015754,2]
[399279527,1766235044052,-209.40437685,0.00015754,2]
[399279529,1766235044062,-500.0,0.00015754,2]
[399279531,1766235044071,-500.0,0.00015754,2]
[399279532,1766235044081,-1000.0,0.00015754,2]
[399279534,1766235044090,-1000.0,0.00015754,2]
[399279536,1766235044100,-200.0,0.00015754,2]
[399279538,1766235044110,-1000.0,0.00015754,2]
[399279540,1766235044119,-207.4,0.00015754,2]
[399279542,1766235044129,-1000.0,0.00015754,2]
[399279543,1766235044139,-215.0738,0.00015754,2]
[399279544,1766235044149,-1000.0,0.00015754,2]
[399279545,1766235044158,-223.0315306,0.00015754,2]
[399279546,1766235044168,-1000.0,0.00015754,2]
[399279547,1766235044177,-231.28369723,0.00015754,2]
[399279548,1766235044187,-1000.0,0.00015754,2]
[399279549,1766235044197,-239.84119403,0.00015754,2]
[399279550,1766235044210,-1000.0,0.00015754,2]
[399279551,1766235044219,-248.71531821,0.00015754,2]
[399279552,1766235044229,-267.97401367,0.00015754,2]
[399279553,1766235044239,-257.91778498,0.00015754,2]
[399279554,1766235044249,-267.46074303,0.00015754,2]
[399279555,1766235044258,-277.35679052,0.00015754,2]
[399279556,1766235044268,-500.0,0.00015754,2]
[399279557,1766235044280,-500.0,0.00015754,2]
[399279558,1766235044289,-500.0,0.00015754,2]
[399279559,1766235044298,-500.0,0.00015754,2]
[399279560,1766235044307,-500.0,0.00015754,2]
[399279561,1766235044316,-500.0,0.00015754,2]
[399279562,1766235044326,-500.0,0.00015754,2]
[399279563,1766235044336,-407.21754602,0.00015754,2]
[399279564,1766235044346,-9905.5980765,0.00015809,2]
[399279565,1766235044355,-10272.10520533,0.00015864,2]
[399279566,1766235044365,-500.0,0.00015872,2]
[399279567,1766235044374,-10652.17309792,0.00015919,2]
[399279568,1766235044383,-500.0,0.00015928,2]
[399279569,1766235044394,-500.0,0.00015973,2]
[399279570,1766235044405,-500.0,0.00015973,2]
[399279571,1766235044414,-162.03877535,0.00015973,2]
[399279572,1766235044424,-500.0,0.00015973,2]
[399279573,1766235044434,-198.63978603,0.00015973,2]
[399279574,1766235044443,-500.0,0.00015973,2]
[399279575,1766235044452,-159.43095819,0.00015973,2]
[399279576,1766235044461,-500.0,0.00015973,2]
[399279577,1766235044471,-500.0,0.00015973,2]
[399279578,1766235044481,-11046.30350255,0.00015974,2]
[399279579,1766235044490,-500.0,0.00015999,2]
[399279580,1766235044499,-528.93385388,0.00016009,2]
[399279581,1766235044509,-1000.0,0.00016021,2]
[399279582,1766235044518,-4180.81569567,0.00016029,2]
[399279583,1766235044527,-1780.222,0.00016146,2]
[399279584,1766235044536,-1647.057,0.00016146,2]
[399279585,1766235044545,-1332.562,0.00016146,2]
[399279586,1766235044555,-615.844,0.00016146,2]
[399279587,1766235044565,-6528.0,0.00016146,2]
[399279588,1766235044574,-4845.428,0.00016146,2]
[399279589,1766235044585,-2428.0,0.00016146,2]
[399279590,1766235044594,-578.0,0.00016212,2]
[399279591,1766235044604,-28929.57302549,0.00016244,2]
[399279592,1766235044613,-21117.31244395,0.0001625,2]
[399279593,1766235044624,-595.37131296,0.00016302,2]
[399279594,1766235044634,-1000.0,0.000164,2]
[399279596,1766235044644,-150.0,0.00016438,2]
[399279597,1766235044653,-500.0,0.00016438,2]
[399279598,1766235044663,-500.0,0.00016438,2]
[399279600,1766235044672,-500.0,0.00016438,2]
[399279602,1766235044681,-235.76832595,0.00016438,2]
[399279604,1766235044691,-691.6701968,0.00016521,2]
[399279606,1766235044700,-1000.0,0.00016521,2]
[399279608,1766235044710,-10097.4,0.00016567,2]
[399279611,1766235044723,-12302.0,0.00016567,2]
[399279612,1766235044732,-150.0,0.00016575,2]
[399279614,1766235044745,-1477.0,0.000166,2]
[399279616,1766235044755,-15637.08958244,0.0001666,2]
[399279618,1766235044765,-3538.09891534,0.000167,2]
[399279620,1766235044774,-814.0,0.00016701,2]
[399279622,1766235044784,-150.0,0.00016712,2]
[399279623,1766235044793,-571.38,0.00016712,2]
[399279624,1766235044803,-846.45332019,0.0001683,2]
[399279625,1766235044812,-150.0,0.00016849,2]
[399279626,1766235044822,-617.40005154,0.0001685,2]
[399279627,1766235044831,-200.0,0.00016864,2]
[399279628,1766235044841,-814.0,0.0001689,2]
[399279629,1766235044852,-10000.0,0.000169,2]
[399279630,1766235044861,-21117.31244395,0.000169,2]
[399279631,1766235044870,-28929.57302549,0.000169,2]
[399279632,1766235044879,-663.27443092,0.000169,2]
[399279633,1766235044888,-170.0006961,0.000169,2]
[399279634,1766235044899,-181.47081457,0.000169,2]
[399279635,1766235044909,-200.0,0.00016973,2]
[399279636,1766235044918,-217.8076658,0.00016983,2]
[399279637,1766235044930,-500.0,0.00016983,2]
[399279638,1766235044939,-255.39654287,0.00016986,2]
[399279639,1766235044948,-500.0,0.00016986,2]
[399279640,1766235044958,-500.0,0.00016986,2]
[399279641,1766235044967,-150.0,0.00016986,2]
[399279642,1766235044976,-258.35726114,0.0001699,2]
[399279643,1766235044986,-258.35726114,0.0001699,2]
[399279644,1766235044995,-3254.5335071,0.00016993,2]
[399279645,1766235045005,-150.0,0.00016993,2]
[399279646,1766235045015,-12456.6189581,0.00016995,2]
[399279647,1766235045024,-486972.8111442,0.00016995,2]
[399279648,1766235045034,-122703.728491,0.00016995,2]
[399279649,1766235045043,-26450.3963639,0.00016995,2]
[399279650,1766235045053,-104204.291071,0.00016995,2]
[399279651,1766235045062,-151.0,0.00016995,2]
[399279652,1766235045072,-151.0,0.00016995,2]
[399279653,1766235045081,-151.0,0.00016995,2]
[399279654,1766235045091,-151.0,0.00016995,2]
[399279655,1766235045101,-156.678396,0.00016995,2]
[399279656,1766235045110,-151.0,0.00016995,2]
[399279657,1766235045119,-151.0,0.00016995,2]
[399279658,1766235045129,-268.048371,0.00016995,2]
[399279659,1766235045139,-151.0,0.00016995,2]
[399279660,1766235045149,-151.0,0.00016995,2]
[399279661,1766235045158,-151.0,0.00016995,2]
[399279662,1766235045168,-151.0,0.00016995,2]
[399279663,1766235045178,-500.0,0.00016998,2]
[399279669,1766235045449,-500.0,0.00016998,2]
[399279671,1766235045459,-4107.2458191,0.00016999,2]
[399279674,1766235045468,-630.0,0.00016999,2]
[399279677,1766235045477,-393923.96742696,0.00017,2]
[399279679,1766235045486,-156557.30997076,0.00017,2]
[399279682,1766235045496,-4604245.90910174,0.00017,2]
[399279685,1766235045519,-1557.38467929,0.00017,2]
[399279691,1766235045565,-1182.47375131,0.00017,2]
[399279740,1766235046013,-169.13428531,0.00015702,2]
[399279742,1766235046022,-1610.86571469,0.00017,2]
[399279750,1766235102306,479.841468,0.00010935,2]
[399279751,1766235112701,9520.168532,0.00010892,2]
[399279752,1766235112729,10000.01,0.00010892,2]
[399279753,1766235112760,10000.01,0.00010892,2]
[399279754,1766235112789,10000.01,0.00010892,2]
[399279755,1766235112818,10000.01,0.00010892,2]
[399279756,1766235112847,10000.01,0.00010892,2]
[399279757,1766235112877,10000.01,0.00010892,2]
[399279758,1766235112903,10000.01,0.00010892,2]
[399279759,1766235112929,10000.01,0.00010892,2]
[399279760,1766235112956,10000.01,0.00010892,2]
[399279761,1766235150801,-231.0762449,0.00010792,2]
[399279762,1766235154231,515.71120081,0.00010891,2]
[399279763,1766235154280,200.3218557,0.00010891,2]
[399279764,1766235154333,265.03131866,0.00010891,2]
[399279765,1766235156667,500.0,0.00010891,2]
[399279766,1766235156708,606.10160328,0.00010891,2]
[399279767,1766235156748,164.17570417,0.00010891,2]
[399279768,1766235156836,500.0,0.00010891,2]
[399279769,1766235156907,500.0,0.00010891,2]
[399279770,1766235156992,500.0,0.00010891,2]
[399279771,1766235157064,500.0,0.00010891,2]
[399279772,1766235157133,500.0,0.00010891,2]
[399279773,1766235157191,500.0,0.00010891,2]
[399279774,1766235157257,500.0,0.00010891,2]
[399279775,1766235157311,500.0,0.00010891,2]
[399279776,1766235157375,500.0,0.00010891,2]
[399279777,1766235157430,500.0,0.00010891,2]
[399279778,1766235157500,500.0,0.00010891,2]
[399279779,1766235157551,500.0,0.00010891,2]
[399279780,1766235158026,500.0,0.00010891,2]
[399279781,1766235158075,500.0,0.00010891,2]
[399279782,1766235158126,286.51582758,0.00010891,2]
[399279783,1766235158153,213.48417242,0.00010891,2]
[399279784,1766235158203,500.0,0.00010891,2]
[399279785,1766235158249,500.0,0.00010891,2]
[399279786,1766235158321,500.0,0.00010891,2]
[399279787,1766235158371,500.0,0.00010891,2]
[399279788,1766235158415,473.92608014,0.00010891,2]
[399279789,1766235158470,500.0,0.00010891,2]
[399279790,1766235158517,500.0,0.00010891,2]
[399279791,1766235158562,500.0,0.00010891,2]
[399279792,1766235158602,500.0,0.00010891,2]
[399279793,1766235158642,500.0,0.00010891,2]
[399279794,1766235158683,500.0,0.00010891,2]
[399279795,1766235158726,500.0,0.00010891,2]
[399279796,1766235158767,500.0,0.00010891,2]
[399279797,1766235158807,500.0,0.00010891,2]
[399279798,1766235158855,500.0,0.00010891,2]
[399279799,1766235158904,500.0,0.00010891,2]
[399279800,1766235158957,500.0,0.00010891,2]
[399279801,1766235158997,500.0,0.00010891,2]
[399279802,1766235159046,500.0,0.00010891,2]
[399279803,1766235159092,312.59974744,0.00010891,2]
[399279804,1766235159120,187.40025256,0.00010891,2]
[399279805,1766235159163,500.0,0.00010891,2]
[399279806,1766235159205,500.0,0.00010891,2]
[399279807,1766235159251,500.0,0.00010891,2]
[399279808,1766235170719,500.0,0.00010891,2]
[399279809,1766235170761,500.0,0.00010891,2]
[399279810,1766235170801,500.0,0.00010891,2]
[399279811,1766235170842,500.0,0.00010891,2]
[399279812,1766235170883,500.0,0.00010891,2]
[399279813,1766235170921,500.0,0.00010891,2]
[399279814,1766235170958,500.0,0.00010891,2]
[399279815,1766235170996,500.0,0.00010891,2]
[399279816,1766235171036,500.0,0.00010891,2]
[399279817,1766235171075,500.0,0.00010891,2]
[399279818,1766235171115,500.0,0.00010891,2]
[399279819,1766235171153,500.0,0.00010891,2]
[399279820,1766235171191,500.0,0.00010891,2]
[399279821,1766235171234,500.0,0.00010891,2]
[399279822,1766235171274,500.0,0.00010891,2]
[399279823,1766235171315,500.0,0.00010891,2]
[399279824,1766235171357,312.60974744,0.00010891,2]
[399279825,1766235171385,187.39025256,0.00010891,2]
[399279826,1766235181594,300.0,0.00010891,2]
[399279827,1766235242079,150.0,0.00010891,2]
[399279833,1766235249192,500.0,0.00010891,2]
[399279834,1766235249246,385.99178668,0.00010891,2]
[399279835,1766235254635,-33000.0,0.00010892,2]
[399279836,1766235282037,158.00126561,0.00010792,2]
[399279837,1766235301610,300.0,0.00010891,2]
[399279838,1766235301926,167.0,0.00010891,2]
[399279839,1766235301963,1200.0,0.00010891,2]
[399279840,1766235361228,300.0,0.00010891,2]
[399279841,1766235421266,300.0,0.00010891,2]
[399279842,1766235422693,150.0,0.00010891,2]
[399279843,1766235426046,151.0,0.00010892,2]
[399279844,1766235426863,151.0,0.00010892,2]
[399279845,1766235427287,151.0,0.00010892,2]
[399279846,1766235427901,151.0,0.00010892,2]
[399279847,1766235428527,151.0,0.00010892,2]
[399279848,1766235429417,151.0,0.00010892,2]
[399279849,1766235429787,151.0,0.00010892,2]
[399279850,1766235429823,200.0,0.00010892,2]
[399279851,1766235430415,151.0,0.00010892,2]
[399279852,1766235431036,151.0,0.00010892,2]
[399279853,1766235431658,151.0,0.00010892,2]
[399279854,1766235432288,151.0,0.00010892,2]
[399279855,1766235432927,151.0,0.00010892,2]
[399279856,1766235433545,151.0,0.00010892,2]
[399279857,1766235434180,151.0,0.00010892,2]
[399279858,1766235435266,151.0,0.00010892,2]
[399279859,1766235435652,500.0,0.00010892,2]
[399279860,1766235435970,151.0,0.00010892,2]
[399279861,1766235436585,151.0,0.00010892,2]
[399279862,1766235437246,151.0,0.00010892,2]
[399279863,1766235437303,158.0012656,0.00010792,2]
[399279864,1766235438353,151.0,0.00010892,2]
[399279865,1766235438976,151.0,0.00010892,2]
[399279866,1766235439162,500.0,0.00010892,2]
[399279867,1766235440644,500.0,0.00010892,2]
[399279868,1766235441000,151.0,0.00010892,2]
[399279869,1766235441695,500.0,0.00010892,2]
[399279870,1766235441836,372.62542955,0.00010892,2]
[399279871,1766235441859,127.37457045,0.00010892,2]
[399279872,1766235441980,151.0,0.00010892,2]
[399279873,1766235442334,500.0,0.00010892,2]
[399279874,1766235442399,151.0,0.00010892,2]
[399279875,1766235454821,-2500.0,0.00010792,2]
[399279876,1766235454854,-500.0,0.00010892,2]
[399279877,1766235454886,-151.0,0.00010892,2]
[399279878,1766235454916,-500.0,0.00010892,2]
[399279879,1766235454946,-151.0,0.00010892,2]
[399279880,1766235454978,-500.0,0.00010892,2]
[399279881,1766235455011,-151.0,0.00010892,2]
[399279882,1766235455040,-151.0,0.00010892,2]
[399279883,1766235455070,-151.0,0.00010892,2]
[399279884,1766235455106,-151.0,0.00010892,2]
[399279885,1766235455139,-37.01,0.00010892,2]
[399279886,1766235455394,-113.99,0.00010892,2]
[399279887,1766235455425,-151.0,0.00010892,2]
[399279888,1766235455455,-500.0,0.00010892,2]
[399279889,1766235455488,-200.0,0.00010892,2]
[399279890,1766235455523,-500.0,0.00010892,2]
[399279891,1766235455555,-500.0,0.00010892,2]
[399279892,1766235455584,-500.0,0.00010892,2]
[399279893,1766235455613,-500.0,0.00010892,2]
[399279894,1766235455642,-500.0,0.00010892,2]
[399279895,1766235455671,-500.0,0.00010892,2]
[399279896,1766235455700,-500.0,0.00010892,2]
[399279897,1766235455960,-500.0,0.00010892,2]
[399279898,1766235456307,-500.0,0.00010892,2]
[399279899,1766235456890,-500.0,0.00010892,2]
[399279900,1766235477125,-200.0,0.00010892,2]
[399279901,1766235484954,1200.0,0.00010891,2]
[399279903,1766235495066,5139.3488,0.00010792,2]
[399279904,1766235510119,-4563.4285943,0.00010892,2]
[399279905,1766235510225,-10000.01,0.00010892,2]
[399279906,1766235510445,-10000.01,0.00010892,2]
[399279907,1766235510592,-10000.01,0.00010892,2]
[399279908,1766235510822,-10000.01,0.00010892,2]
[399279909,1766235511018,-10000.01,0.00010892,2]
[399279910,1766235511236,-10000.01,0.00010892,2]
[399279911,1766235511370,-10000.01,0.00010892,2]
[399279912,1766235511493,-10000.01,0.00010892,2]
[399279913,1766235534194,5525.0,0.00012,5]
[399279914,1766235534445,5525.0,0.000118,3]
[399279915,1766235566217,5525.0,0.000119,5]
[399279916,1766235566451,2559.0,0.000118,3]
[399279917,1766235595608,2500.0,0.00010792,2]
[399279918,1766235601579,1200.0,0.00010891,2]
[399279919,1766235601618,300.0,0.00010891,2]
[399279920,1766235602755,150.0,0.00010891,2]
[399279921,1766235628401,1107.0,0.000118,5]
[399279923,1766235693231,2835.369,0.00010674,2]
[399279924,1766235693444,159.6,0.00010674,2]
[399279927,1766235940983,1050.37,0.00022,30]
[399279941,1766236049622,-2746.63,0.00010688,2]
[399279942,1766236127256,-1200.0,0.00010791,2]
[399279943,1766236127285,-250.0,0.00010791,2]
[399279944,1766236141267,300.0,0.00010791,2]
[399279945,1766236142844,150.0,0.00010791,2]
[399279946,1766236143604,158.0012656,0.00010706,2]
[399279947,1766236201991,300.0,0.00010791,2]
[399279948,1766236203426,1200.0,0.00010791,2]
[399279949,1766236212385,4992.0087344,0.00010748,2]
[399279950,1766236212407,5382.8912656,0.00010748,2]
[399279951,1766236215945,196.33233618,0.000107,2]
[399279953,1766236231812,-1887.62,0.00010792,2]
[399279954,1766236231827,-329.71388483,0.00010792,2]
[399279955,1766236231838,-282.66611517,0.00010792,2]
[399279956,1766236231847,-7191.97151992,0.00010792,2]
[399279957,1766236231858,-17520.70274877,0.00010792,2]
[399279958,1766236231869,-79034.40062407,0.00010792,2]
[399279959,1766236231880,-63723.81672871,0.00010792,2]
[399279960,1766236231915,-588.01462788,0.00010792,2]
[399279961,1766236231929,-1295.49444711,0.00010792,2]
[399279965,1766236232063,2149.120869,0.00010738,2]
[399279969,1766236238075,-1463.57776,0.00010792,2]
[399279971,1766236240261,-768.07840599,0.00010792,2]
[399279972,1766236240273,-828413.94313755,0.00010792,2]
[399279973,1766236240283,-1407.9612,0.00010792,2]
[399279974,1766236240292,-238.0,0.00010792,2]
[399279975,1766236240303,-500.0,0.00010806,2]
[399279976,1766236240312,-500.0,0.00010806,2]
[399279977,1766236240322,-500.0,0.00010806,2]
[399279978,1766236240338,-500.0,0.00010806,2]
[399279979,1766236240348,-500.0,0.00010806,2]
[399279980,1766236240359,-487.26095133,0.00010806,2]
[399279981,1766236240368,-500.0,0.00010806,2]
[399279982,1766236240378,-500.0,0.00010806,2]
[399279983,1766236240387,-78489.94,0.00010807,2]
[399279984,1766236240397,-200.0,0.00010885,2]
[399279985,1766236240407,-500.0,0.00010885,2]
[399279986,1766236240416,-500.0,0.00010885,2]
[399279988,1766236240426,-421.92068015,0.00010885,2]
[399279989,1766236240435,-235.28816838,0.00010885,2]
[399279991,1766236240445,-200.0,0.00010885,2]
[399279992,1766236240454,-151.0,0.00010885,2]
[399279994,1766236240464,-151.0,0.00010885,2]
[399279996,1766236240473,-151.0,0.00010885,2]
[399279998,1766236240482,-151.0,0.00010885,2]
[399280000,1766236240493,-151.0,0.00010885,2]
[399280002,1766236240502,-151.0,0.00010885,2]
[399280004,1766236240512,-151.0,0.00010885,2]
[399280005,1766236240521,-151.0,0.00010885,2]
[399280007,1766236240530,-151.0,0.00010885,2]
[399280009,1766236240540,-151.0,0.00010885,2]
[399280010,1766236240549,-151.0,0.00010885,2]
[399280011,1766236240559,-500.0,0.00010885,2]
[399280012,1766236240568,-185.52192307,0.00010891,2]
[399280013,1766236240578,-293.28778646,0.00010891,2]
[399280014,1766236240588,-1000.0,0.00010892,2]
[399280015,1766236240598,-500.0,0.00010892,2]
[399280016,1766236240607,-28736.2992,0.00010892,2]
[399280017,1766236240616,-953.66,0.00010892,2]
[399280018,1766236240626,-151.0,0.00010892,2]
[399280019,1766236240635,-428.96053277,0.00010892,2]
[399280020,1766236240644,-1500.0,0.00010997,2]
[399280021,1766236240654,-258.35726114,0.0001108,2]
[399280022,1766236240664,-151.0,0.00011087,2]
[399280023,1766236240673,-1004.07540252,0.0001109,2]
[399280024,1766236240683,-9999.99,0.0001109,2]
[399280025,1766236240693,-9999.99,0.0001109,2]
[399280026,1766236240703,-9999.99,0.0001109,2]
[399280027,1766236240712,-2510.24,0.0001109,2]
[399280028,1766236240721,-50075.86,0.0001109,2]
[399280029,1766236240730,-150.99,0.0001109,2]
[399280030,1766236240739,-499.99,0.0001109,2]
[399280031,1766236240749,-299.99,0.0001109,2]
[399280032,1766236240758,-999.99,0.0001109,2]
[399280033,1766236240767,-150.99,0.0001109,2]
[399280034,1766236240776,-4999.99,0.0001109,2]
[399280035,1766236240785,-21117.31244402,0.00011099,2]
[399280036,1766236240795,-953.66,0.00011166,2]
[399280037,1766236240803,-500.0,0.00011197,2]
[399280038,1766236240813,-500.0,0.00011197,2]
[399280039,1766236240823,-200.0,0.00011197,2]
[399280040,1766236240831,-200.0,0.00011197,2]
[399280041,1766236240840,-250.0,0.00011197,2]
[399280042,1766236240850,-200.0,0.00011197,2]
[399280043,1766236240859,-500.0,0.00011197,2]
[399280044,1766236240868,-500.0,0.00011197,2]
[399280045,1766236240877,-562.0,0.00011197,2]
[399280046,1766236240887,-500.0,0.00011197,2]
[399280047,1766236240896,-150.0,0.00011197,2]
[399280048,1766236240905,-528.93385388,0.00011334,2]
[399280049,1766236240917,-500.0,0.00011334,2]
[399280050,1766236240927,-500.0,0.00011334,2]
[399280051,1766236240936,-500.0,0.00011334,2]
[399280052,1766236240946,-562.0,0.00011334,2]
[399280053,1766236240955,-500.0,0.00011334,2]
[399280054,1766236240964,-262.27,0.00011424,2]
[399280055,1766236240973,-200.0,0.00011433,2]
[399280056,1766236240982,-200.0,0.00011433,2]
[399280057,1766236240992,-500.0,0.00011433,2]
[399280058,1766236241001,-953.66,0.0001144,2]
[399280059,1766236241010,-21117.31244395,0.00011471,2]
[399280060,1766236241019,-500.0,0.00011471,2]
[399280061,1766236241028,-500.0,0.00011471,2]
[399280062,1766236241037,-500.0,0.00011471,2]
[399280063,1766236241046,-562.0,0.00011471,2]
[399280064,1766236241055,-500.0,0.00011471,2]
[399280065,1766236241064,-500.0,0.00011608,2]
[399280066,1766236241074,-500.0,0.00011608,2]
[399280067,1766236241083,-500.0,0.00011608,2]
[399280068,1766236241092,-562.0,0.00011608,2]
[399280069,1766236241101,-500.0,0.00011608,2]
[399280070,1766236241114,-500.0,0.00011707,2]
[399280071,1766236241123,-150.0,0.00011707,2]
[399280072,1766236241132,-500.0,0.00011707,2]
[399280073,1766236241141,-150.0,0.00011707,2]
[399280074,1766236241150,-500.0,0.00011707,2]
[399280075,1766236241160,-805.0,0.00011707,2]
[399280076,1766236241169,-500.0,0.00011707,2]
[399280077,1766236241178,-500.0,0.00011707,2]
[399280078,1766236241188,-500.0,0.00011707,2]
[399280079,1766236241197,-500.0,0.00011707,2]
[399280080,1766236241206,-500.0,0.00011707,2]
[399280081,1766236241215,-500.0,0.00011707,2]
[399280082,1766236241226,-500.0,0.00011707,2]
[399280083,1766236241235,-500.0,0.00011707,2]
[399280084,1766236241245,-500.0,0.00011707,2]
[399280085,1766236241255,-500.0,0.00011707,2]
[399280086,1766236241264,-500.0,0.00011707,2]
[399280087,1766236241274,-500.0,0.00011707,2]
[399280088,1766236241283,-500.0,0.00011707,2]
[399280089,1766236241292,-500.0,0.00011707,2]
[399280090,1766236241303,-500.0,0.00011707,2]
[399280091,1766236241313,-500.0,0.00011707,2]
[399280092,1766236241323,-500.0,0.00011707,2]
[399280093,1766236241332,-182.03550195,0.00011707,2]
[399280094,1766236241342,-953.66,0.00011714,2]
[399280095,1766236241351,-500.0,0.00011745,2]
[399280096,1766236241361,-500.0,0.00011745,2]
[399280097,1766236241371,-500.0,0.00011745,2]
[399280098,1766236241380,-562.0,0.00011745,2]
[399280099,1766236241389,-500.0,0.00011745,2]
[399280100,1766236241398,-255.0,0.00011827,2]
[399280101,1766236241407,-500.0,0.00011844,2]